fUSD/lending_fUSD_20240210
["ID","MTS","AMOUNT","RATE_DAILY","PERIOD"]
[313714046,1707601856521,-543.49,0.00038904,30]
[313714047,1707601856530,-500.0,0.00038904,30]
[313714048,1707601856540,-500.0,0.00038904,30]
[313714049,1707601856549,-500.0,0.00038904,30]
[313714050,1707601856560,-500.0,0.00038904,30]
[313714051,1707601856574,-500.0,0.00038904,30]
[313714052,1707601856663,-500.0,0.00038904,30]
[313714053,1707601856672,-500.0,0.00038904,30]
[313714054,1707601856682,-500.0,0.00038904,30]
[313714055,1707601856691,-500.0,0.00038904,30]
[313714056,1707601856700,-500.0,0.00038904,30]
[313714057,1707601856709,-500.0,0.00038904,30]
[313714058,1707601856718,-541.0,0.00038904,30]
[313714059,1707601856728,-500.0,0.00038904,30]
[313714060,1707601856737,-258.80719732,0.00038904,30]
[313714061,1707601856746,-500.0,0.00038904,30]
[313714062,1707601856755,-1034.04,0.00038904,30]
[313714063,1707601856764,-500.0,0.00038904,30]
[313714064,1707601856773,-500.0,0.00038904,30]
[313714065,1707601856782,-500.0,0.00038904,30]
[313714066,1707601856791,-795.66,0.00038904,30]
[313714067,1707601856800,-534.28,0.00038904,30]
[313714068,1707601856810,-500.0,0.00038904,30]
[313714069,1707601856819,-908.38,0.00038904,30]
[313714070,1707601856828,-500.0,0.00038904,30]
[313714071,1707601856837,-500.0,0.00038904,30]
[313714072,1707601856846,-500.0,0.00038904,30]
[313714073,1707601856855,-731.71,0.00038904,30]
[313714074,1707601856863,-500.0,0.00038904,30]
[313714075,1707601856872,-500.0,0.00038904,30]
[313714076,1707601856881,-500.0,0.00038904,30]
[313714077,1707601856890,-500.0,0.00038904,30]
[313714078,1707601856899,-515.27,0.00038904,30]
[313714079,1707601856909,-201.97332118,0.00038904,30]
[313714080,1707601856918,-500.0,0.00038904,30]
[313714081,1707601856927,-500.0,0.00038904,30]
[313714082,1707601856936,-500.0,0.00038904,30]
[313714083,1707601856945,-767.36,0.00038904,30]
[313714084,1707601856954,-884.33,0.00038904,30]
[313714085,1707601856963,-500.0,0.00038904,30]
[313714086,1707601856972,-500.0,0.00038904,30]
[313714087,1707601856981,-547.76,0.00038904,30]
[313714088,1707601856990,-737.52,0.00038904,30]
[313714089,1707601856999,-500.0,0.00038904,30]
[313714090,1707601857008,-500.0,0.00038904,30]
[313714091,1707601857017,-500.0,0.00038904,30]
[313714092,1707601857026,-712.78,0.00038904,30]
[313714093,1707601857035,-737.99,0.00038904,30]
[313714094,1707601857043,-599.27,0.00038904,30]
[313714095,1707601857052,-753.18,0.00038904,30]
[313714096,1707601857062,-644.62664216,0.00038904,30]
[313714097,1707601857071,-500.0,0.00038904,30]
[313714098,1707601857080,-500.0,0.00038904,30]
[313714099,1707601857089,-628.23,0.00038904,30]
[313714100,1707601857098,-545.39,0.00038904,2]
[313714101,1707601857107,-500.0,0.00038904,30]
[313714102,1707601857116,-500.0,0.00038904,30]
[313714103,1707601857125,-329.6061792,0.00038904,30]
[313714104,1707601857134,-500.0,0.00038904,30]
[313714105,1707601857143,-882.01,0.00038904,30]
[313714106,1707601857152,-500.0,0.00038904,30]
[313714107,1707601857162,-500.0,0.00038904,2]
[313714108,1707601857171,-523.82,0.00038904,30]
[313714109,1707601857180,-500.0,0.00038904,30]
[313714110,1707601857190,-500.0,0.00038904,30]
[313714111,1707601857199,-788.52,0.00038904,30]
[313714112,1707601857207,-599.85,0.00038904,30]
[313714113,1707601857217,-500.0,0.00038904,30]
[313714114,1707601857225,-500.0,0.00038904,30]
[313714115,1707601857234,-500.0,0.00038904,30]
[313714116,1707601857243,-1000.0,0.00038904,120]
[313714117,1707601857252,-500.0,0.00038904,30]
[313714118,1707601857260,-500.0,0.00038904,30]
[313714119,1707601857269,-500.0,0.00038904,30]
[313714120,1707601857278,-773.2,0.00038904,30]
[313714121,1707601857287,-500.0,0.00038904,30]
[313714122,1707601857296,-500.0,0.00038904,30]
[313714123,1707601857306,-1084.51,0.00038904,30]
[313714124,1707601857315,-500.0,0.00038904,30]
[313714125,1707601857324,-520.12,0.00038904,30]
[313714126,1707601857334,-500.0,0.00038904,30]
[313714127,1707601857342,-656.96,0.00038904,30]
[313714128,1707601857352,-535.91,0.00038904,30]
[313714129,1707601857361,-500.0,0.00038904,30]
[313714130,1707601857371,-500.0,0.00038904,30]
[313714131,1707601857380,-867.54,0.00038904,30]
[313714132,1707601857389,-610.9,0.00038904,30]
[313714133,1707601857398,-500.0,0.00038904,30]
[313714134,1707601857407,-651.27,0.00038904,30]
[313714135,1707601857416,-784.86,0.00038904,30]
[313714136,1707601857426,-500.0,0.00038904,30]
[313714137,1707601857435,-500.0,0.00038904,30]
[313714138,1707601857445,-500.0,0.00038904,30]
[313714139,1707601857454,-500.0,0.00038904,30]
[313714140,1707601857463,-500.0,0.00038904,30]
[313714141,1707601857472,-592.08,0.00038904,30]
[313714142,1707601857481,-500.0,0.00038904,30]
[313714143,1707601857490,-500.0,0.00038904,30]
[313714144,1707601857499,-500.0,0.00038904,30]
[313714145,1707601857508,-569.01,0.00038904,30]
[313714146,1707601857517,-974.04,0.00038904,30]
[313714147,1707601857526,-540.91267373,0.00038904,30]
[313714148,1707601857536,-542.53,0.00038904,30]
[313714149,1707601857545,-500.0,0.00038904,30]
[313714150,1707601857554,-500.0,0.00038904,30]
[313714151,1707601857565,-514.14,0.00038904,30]
[313714152,1707601857575,-834.72,0.00038904,30]
[313714153,1707601857585,-500.0,0.00038904,30]
[313714154,1707601857594,-500.0,0.00038904,30]
[313714155,1707601857605,-500.0,0.00038904,30]
[313714156,1707601857614,-784.17,0.00038904,30]
[313714157,1707601857623,-561.24,0.00038904,30]
[313714158,1707601857632,-500.0,0.00038904,30]
[313714159,1707601857643,-500.0,0.00038904,30]
[313714160,1707601857651,-632.71,0.00038904,30]
[313714161,1707601857661,-728.89,0.00038904,30]
[313714162,1707601857670,-500.0,0.00038904,30]
[313714163,1707601857679,-552.34,0.00038904,30]
[313714164,1707601857688,-500.0,0.00038904,30]
[313714165,1707601857698,-822.96,0.00038904,30]
[313714166,1707601857707,-521.18,0.00038904,30]
[313714167,1707601857717,-500.0,0.00038904,30]
[313714168,1707601857726,-635.8,0.00038904,30]
[313714169,1707601857736,-500.0,0.00038904,30]
[313714170,1707601857746,-500.0,0.00038904,30]
[313714171,1707601857755,-736.74,0.00038904,30]
[313714172,1707601857764,-500.0,0.00038904,30]
[313714173,1707601857774,-500.0,0.00038904,30]
[313714174,1707601857783,-500.0,0.00038904,30]
[313714175,1707601857792,-500.0,0.00038904,30]
[313714176,1707601857801,-500.0,0.00038904,30]
[313714177,1707601857810,-500.0,0.00038904,30]
[313714178,1707601857819,-1379.06,0.00038904,30]
[313714179,1707601857828,-500.0,0.00038904,30]
[313714180,1707601857837,-500.0,0.00038904,30]
[313714181,1707601857846,-679.06,0.00038904,30]
[313714182,1707601857855,-500.0,0.00038904,30]
[313714183,1707601857864,-277.81,0.00038904,30]
[313714184,1707601857873,-500.0,0.00038904,30]
[313714185,1707601857882,-500.0,0.00038904,30]
[313714186,1707601857891,-500.0,0.00038904,30]
[313714187,1707601857899,-1217.08,0.00038904,30]
[313714188,1707601857909,-500.0,0.00038904,30]
[313714189,1707601857917,-778.92,0.00038904,30]
[313714190,1707601857926,-500.0,0.00038904,30]
[313714191,1707601857935,-500.0,0.00038904,30]
[313714192,1707601857944,-500.0,0.00038904,30]
[313714193,1707601857953,-500.0,0.00038904,30]
[313714194,1707601857962,-810.84,0.00038904,30]
[313714195,1707601857971,-1841.8,0.00038904,30]
[313714196,1707601857980,-500.0,0.00038904,30]
[313714197,1707601857989,-500.0,0.00038904,30]
[313714198,1707601857999,-500.0,0.00038904,30]
[313714199,1707601858008,-500.0,0.00038904,30]
[313714200,1707601858017,-627.91749453,0.00038904,30]
[313714201,1707601858026,-500.0,0.00038904,30]
[313714202,1707601858035,-1857.97,0.00038904,30]
[313714203,1707601858045,-500.0,0.00038904,30]
[313714204,1707601858055,-500.0,0.00038904,30]
[313714205,1707601858064,-549.96,0.00038904,2]
[313714206,1707601858074,-500.0,0.00038904,30]
[313714207,1707601858083,-1015.73,0.00038904,30]
[313714208,1707601858092,-889.74,0.00038904,30]
[313714209,1707601858101,-500.0,0.00038904,30]
[313714210,1707601858110,-639.74,0.00038904,30]
[313714211,1707601858120,-500.0,0.00038904,30]
[313714212,1707601858129,-500.0,0.00038904,30]
[313714213,1707601858139,-561.28,0.00038904,30]
[313714214,1707601858148,-500.0,0.00038904,30]
[313714215,1707601858156,-535.82,0.00038904,30]
[313714216,1707601858166,-500.0,0.00038904,30]
[313714217,1707601858175,-500.0,0.00038904,30]
[313714218,1707601858184,-1302.06,0.00038904,30]
[313714219,1707601858193,-537.95,0.00038904,30]
[313714220,1707601858203,-1316.65,0.00038904,30]
[313714221,1707601858212,-500.0,0.00038904,30]
[313714222,1707601858221,-500.0,0.00038904,30]
[313714223,1707601858230,-500.0,0.00038904,30]
[313714224,1707601858239,-1662.06,0.00038904,30]
[313714225,1707601858249,-500.0,0.00038904,30]
[313714226,1707601858259,-500.0,0.00038904,30]
[313714227,1707601858268,-557.17,0.00038904,30]
[313714228,1707601858277,-574.72,0.00038904,30]
[313714229,1707601858286,-500.0,0.00038904,30]
[313714230,1707601858295,-500.0,0.00038904,30]
[313714231,1707601858305,-500.0,0.00038904,30]
[313714232,1707601858315,-500.0,0.00038904,30]
[313714233,1707601858324,-500.0,0.00038904,30]
[313714234,1707601858333,-3039.75,0.00038904,30]
[313714235,1707601858342,-641.81,0.00038904,30]
[313714236,1707601858351,-500.0,0.00038904,30]
[313714237,1707601858359,-500.0,0.00038904,30]
[313714238,1707601858369,-820.4,0.00038904,30]
[313714239,1707601858378,-519.24,0.00038904,30]
[313714240,1707601858386,-1352.04,0.00038904,30]
[313714241,1707601858395,-500.0,0.00038904,30]
[313714242,1707601858404,-500.0,0.00038904,30]
[313714243,1707601858413,-531.75,0.00038904,30]
[313714244,1707601858422,-500.0,0.00038904,30]
[313714245,1707601858431,-500.0,0.00038904,30]
[313714246,1707601858441,-561.05,0.00038904,30]
[313714247,1707601858450,-500.0,0.00038904,30]
[313714248,1707601858460,-693.34,0.00038904,30]
[313714249,1707601858469,-3416.57,0.00038904,30]
[313714250,1707601858478,-500.0,0.00038904,30]
[313714251,1707601858487,-551.85,0.00038904,30]
[313714252,1707601858497,-500.0,0.00038904,30]
[313714253,1707601858507,-500.0,0.00038904,30]
[313714254,1707601858516,-642.83,0.00038904,30]
[313714255,1707601858525,-523.22,0.00038904,30]
[313714256,1707601858534,-500.0,0.00038904,30]
[313714257,1707601858544,-562.41405972,0.00038904,30]
[313714258,1707601858553,-500.0,0.00038904,30]
[313714259,1707601858565,-500.0,0.00038904,30]
[313714260,1707601858576,-500.0,0.00038904,30]
[313714261,1707601858585,-500.0,0.00038904,30]
[313714262,1707601858594,-500.0,0.00038904,30]
[313714263,1707601858603,-500.0,0.00038904,30]
[313714264,1707601858613,-500.0,0.00038904,30]
[313714265,1707601858622,-878.41,0.00038904,30]
[313714266,1707601858631,-500.0,0.00038904,30]
[313714267,1707601858641,-500.0,0.00038904,30]
[313714268,1707601858650,-1509.53,0.00038904,30]
[313714269,1707601858660,-500.0,0.00038904,30]
[313714270,1707601858670,-863.6,0.00038904,5]
[313714271,1707601858679,-500.0,0.00038904,30]
[313714272,1707601858689,-500.0,0.00038904,30]
[313714273,1707601858698,-500.0,0.00038904,30]
[313714274,1707601858707,-1068.6,0.00038904,30]
[313714275,1707601858716,-500.0,0.00038904,30]
[313714276,1707601858726,-500.0,0.00038904,30]
[313714277,1707601858735,-191.99921164,0.00038904,30]
[313714278,1707601858745,-981.77,0.00038904,30]
[313714279,1707601858754,-500.0,0.00038904,30]
[313714280,1707601858764,-2683.19,0.00038904,30]
[313714281,1707601858773,-500.0,0.00038904,30]
[313714282,1707601858783,-500.0,0.00038904,30]
[313714283,1707601858793,-500.0,0.00038904,30]
[313714284,1707601858802,-500.0,0.00038904,30]
[313714285,1707601858812,-828.45,0.00038904,30]
[313714286,1707601858822,-1734.41,0.00038904,30]
[313714287,1707601858832,-500.0,0.00038904,30]
[313714288,1707601858841,-500.0,0.00038904,30]
[313714289,1707601858850,-500.0,0.00038904,30]
[313714290,1707601858860,-500.0,0.00038904,30]
[313714291,1707601858870,-2401.7,0.00038904,30]
[313714292,1707601858879,-500.0,0.00038904,30]
[313714293,1707601858888,-500.0,0.00038904,30]
[313714294,1707601858897,-500.0,0.00038904,30]
[313714295,1707601858906,-1796.69,0.00038904,30]
[313714296,1707601858915,-500.0,0.00038904,30]
[313714297,1707601858924,-635.08,0.00038904,30]
[313714298,1707601858934,-500.0,0.00038904,30]
[313714299,1707601858943,-558.32,0.00038904,30]
[313714300,1707601858952,-668.46,0.00038904,30]
[313714301,1707601858961,-2258.53,0.00038904,30]
[313714302,1707601858970,-500.0,0.00038904,30]
[313714303,1707601858979,-1436.75,0.00038904,30]
[313714304,1707601858989,-500.0,0.00038904,30]
[313714305,1707601858998,-500.0,0.00038904,30]
[313714306,1707601859007,-630.77,0.00038904,30]
[313714307,1707601859016,-1973.1,0.00038904,30]
[313714308,1707601859025,-500.0,0.00038904,30]
[313714309,1707601859034,-3251.25,0.00038904,30]
[313714310,1707601859043,-1594.12,0.00038904,30]
[313714311,1707601859053,-4524.13,0.00038904,30]
[313714312,1707601859062,-624.13,0.00038904,30]
[313714313,1707601859071,-544.25,0.00038904,30]
[313714314,1707601859080,-500.0,0.00038904,30]
[313714315,1707601859089,-500.0,0.00038904,30]
[313714316,1707601859099,-500.0,0.00038904,30]
[313714317,1707601859108,-500.0,0.00038904,30]
[313714318,1707601859117,-500.0,0.00038904,30]
[313714319,1707601859126,-500.0,0.00038904,30]
[313714320,1707601859135,-1257.23,0.00038904,30]
[313714321,1707601859144,-500.0,0.00038904,30]
[313714322,1707601859153,-500.0,0.00038904,30]
[313714323,1707601859163,-500.0,0.00038904,30]
[313714324,1707601859172,-500.0,0.00038904,30]
[313714325,1707601859181,-2240.69,0.00038904,30]
[313714326,1707601859191,-500.0,0.00038904,30]
[313714327,1707601859200,-500.0,0.00038904,2]
[313714328,1707601859210,-500.0,0.00038904,30]
[313714329,1707601859219,-500.0,0.00038904,30]
[313714330,1707601859228,-500.0,0.00038904,30]
[313714331,1707601859238,-500.0,0.00038904,30]
[313714332,1707601859247,-500.0,0.00038904,30]
[313714333,1707601859256,-500.0,0.00038904,30]
[313714334,1707601859266,-500.0,0.00038904,30]
[313714335,1707601859275,-500.0,0.00038904,30]
[313714336,1707601859285,-500.0,0.00038904,30]
[313714337,1707601859294,-2274.07,0.00038904,30]
[313714338,1707601859304,-500.0,0.00038904,30]
[313714339,1707601859314,-500.0,0.00038904,30]
[313714340,1707601859323,-500.0,0.00038904,30]
[313714341,1707601859333,-500.0,0.00038904,30]
[313714342,1707601859342,-500.0,0.00038904,30]
[313714343,1707601859351,-500.0,0.00038904,30]
[313714344,1707601859360,-1307.77,0.00038904,30]
[313714345,1707601859370,-1625.66,0.00038904,30]
[313714346,1707601859379,-500.0,0.00038904,30]
[313714347,1707601859388,-500.0,0.00038904,30]
[313714348,1707601859398,-500.0,0.00038904,30]
[313714349,1707601859407,-1329.42,0.00038904,30]
[313714350,1707601859416,-528.28,0.00038904,30]
[313714351,1707601859426,-1376.47,0.00038904,30]
[313714352,1707601859435,-1334.71,0.00038904,30]
[313714353,1707601859445,-881.37,0.00038904,30]
[313714354,1707601859454,-500.0,0.00038904,30]
[313714355,1707601859464,-500.0,0.00038904,30]
[313714356,1707601859473,-500.0,0.00038904,30]
[313714357,1707601859483,-616.58,0.00038904,30]
[313714358,1707601859493,-500.0,0.00038904,30]
[313714359,1707601859503,-500.0,0.00038904,30]
[313714360,1707601859512,-500.0,0.00038904,2]
[313714361,1707601859521,-500.0,0.00038904,30]
[313714362,1707601859532,-2669.57,0.00038904,30]
[313714363,1707601859542,-500.0,0.00038904,30]
[313714364,1707601859551,-577.16,0.00038904,2]
[313714365,1707601859565,-1078.4,0.00038904,30]
[313714366,1707601859575,-2323.02,0.00038904,30]
[313714367,1707601859585,-500.0,0.00038904,30]
[313714368,1707601859594,-4587.53,0.00038904,30]
[313714369,1707601859604,-943.15,0.00038904,30]
[313714370,1707601859614,-743.65,0.00038904,30]
[313714371,1707601859624,-744.84,0.00038904,30]
[313714372,1707601859633,-500.0,0.00038904,30]
[313714373,1707601859644,-500.0,0.00038904,30]
[313714374,1707601859654,-932.41,0.00038904,30]
[313714375,1707601859664,-500.0,0.00038904,30]
[313714376,1707601859674,-1206.69,0.00038904,30]
[313714377,1707601859683,-500.0,0.00038904,30]
[313714378,1707601859693,-500.0,0.00038904,30]
[313714379,1707601859702,-4530.38,0.00038904,30]
[313714380,1707601859712,-500.0,0.00038904,30]
[313714381,1707601859721,-1707.67,0.00038904,30]
[313714382,1707601859731,-500.0,0.00038904,30]
[313714383,1707601859740,-500.0,0.00038904,30]
[313714384,1707601859750,-500.0,0.00038904,30]
[313714385,1707601859759,-500.0,0.00038904,30]
[313714386,1707601859770,-500.0,0.00038904,30]
[313714387,1707601859780,-526.81,0.00038904,30]
[313714388,1707601859790,-500.0,0.00038904,30]
[313714389,1707601859800,-1406.78,0.00038904,30]
[313714390,1707601859810,-647.73,0.00038904,30]
[313714391,1707601859820,-500.0,0.00038904,30]
[313714392,1707601859830,-500.0,0.00038904,30]
[313714393,1707601859840,-1864.35,0.00038904,30]
[313714394,1707601859849,-500.0,0.00038904,30]
[313714395,1707601859859,-500.0,0.00038904,30]
[313714396,1707601859869,-1519.09,0.00038904,30]
[313714397,1707601859879,-500.0,0.00038904,30]
[313714398,1707601859888,-1039.09,0.00038904,30]
[313714399,1707601859897,-1508.38,0.00038904,30]
[313714400,1707601859907,-523.71,0.00038904,30]
[313714401,1707601859916,-1290.83,0.00038904,30]
[313714402,1707601859925,-500.0,0.00038904,30]
[313714403,1707601859935,-574.9,0.00038904,30]
[313714404,1707601859944,-532.0,0.00038904,30]
[313714405,1707601859954,-331.84902041,0.00038904,30]
[313714406,1707601859963,-500.0,0.00038904,30]
[313714407,1707601859973,-1239.46,0.00038904,30]
[313714408,1707601859982,-607.24,0.00038904,30]
[313714409,1707601859991,-769.27,0.00038904,30]
[313714410,1707601860001,-345.79311813,0.00038904,30]
[313714411,1707601860011,-500.0,0.00038904,30]
[313714412,1707601860020,-1594.59,0.00038904,30]
[313714413,1707601860030,-1293.56,0.00038904,30]
[313714414,1707601860039,-1374.11,0.00038904,30]
[313714415,1707601860050,-572.05,0.00038904,30]
[313714416,1707601860061,-500.0,0.00038904,30]
[313714417,1707601860071,-846.98,0.00038904,30]
[313714418,1707601860081,-500.0,0.00038904,30]
[313714419,1707601860090,-2406.41,0.00038904,30]
[313714420,1707601860100,-2927.06,0.00038904,30]
[313714421,1707601860109,-500.0,0.00038904,30]
[313714422,1707601860120,-500.0,0.00038904,30]
[313714423,1707601860130,-500.0,0.00038904,30]
[313714424,1707601860139,-642.45,0.00038904,30]
[313714425,1707601860149,-2633.36,0.00038904,30]
[313714426,1707601860160,-500.0,0.00038904,30]
[313714427,1707601860170,-683.9,0.00038904,30]
[313714428,1707601860179,-500.0,0.00038904,30]
[313714429,1707601860189,-500.0,0.00038904,30]
[313714430,1707601860199,-1941.25,0.00038904,30]
[313714431,1707601860209,-505.63926045,0.00038904,30]
[313714432,1707601860219,-500.0,0.00038904,30]
[313714433,1707601860228,-800.43,0.00038904,30]
[313714434,1707601860238,-500.0,0.00038904,30]
[313714435,1707601860248,-500.0,0.00038904,30]
[313714436,1707601860258,-2269.39,0.00038904,30]
[313714437,1707601860268,-1008.96,0.00038904,30]
[313714438,1707601860279,-500.0,0.00038904,30]
[313714439,1707601860289,-500.0,0.00038904,30]
[313714440,1707601860299,-500.0,0.00038904,30]
[313714441,1707601860309,-1919.56,0.00038904,30]
[313714442,1707601860322,-3274.17,0.00038904,30]
[313714443,1707601860331,-500.0,0.00038904,30]
[313714444,1707601860341,-565.81,0.00038904,30]
[313714445,1707601860351,-417.37,0.00038904,30]
[313714446,1707601860361,-500.0,0.00038904,30]
[313714447,1707601860370,-1427.37,0.00038904,30]
[313714448,1707601860380,-500.0,0.00038904,30]
[313714449,1707601860389,-363.96,0.00038904,30]
[313714450,1707601860399,-500.0,0.00038904,30]
[313714451,1707601860408,-888.4,0.00038904,30]
[313714452,1707601860417,-500.0,0.00038904,30]
[313714453,1707601860427,-500.0,0.00038904,30]
[313714454,1707601860437,-558.56,0.00038904,30]
[313714455,1707601860447,-500.0,0.00038904,30]
[313714456,1707601860457,-500.0,0.00038904,30]
[313714457,1707601860466,-2572.05,0.00038904,30]
[313714458,1707601860476,-1202.85,0.00038904,30]
[313714459,1707601860486,-1220.73,0.00038904,30]
[313714460,1707601860496,-960.75,0.00038904,30]
[313714461,1707601860506,-500.0,0.00038904,30]
[313714462,1707601860515,-500.0,0.00038904,30]
[313714463,1707601860525,-762.82,0.00038904,30]
[313714464,1707601860535,-551.31,0.00038904,30]
[313714465,1707601860545,-896.5,0.00038904,30]
[313714466,1707601860556,-592.88,0.00038904,30]
[313714467,1707601860570,-629.98,0.00038904,30]
[313714468,1707601860580,-500.0,0.00038904,30]
[313714469,1707601860590,-2391.63,0.00038904,30]
[313714470,1707601860600,-689.25,0.00038904,30]
[313714471,1707601860610,-1838.86,0.00038904,30]
[313714472,1707601860620,-2559.04,0.00038904,30]
[313714473,1707601860631,-500.0,0.00038904,30]
[313714474,1707601860640,-1498.61,0.00038904,30]
[313714475,1707601860650,-500.0,0.00038904,30]
[313714476,1707601860660,-500.0,0.00038904,30]
[313714477,1707601860671,-500.0,0.00038904,30]
[313714478,1707601860680,-500.0,0.00038904,30]
[313714479,1707601860690,-500.0,0.00038904,30]
[313714480,1707601860700,-1021.32,0.00038904,30]
[313714481,1707601860710,-500.0,0.00038904,30]
[313714482,1707601860720,-1365.79,0.00038904,5]
[313714483,1707601860913,-514.47,0.00038904,30]
[313714484,1707601860923,-612.67,0.00038904,30]
[313714485,1707601860933,-500.0,0.00038904,30]
[313714486,1707601860942,-500.0,0.00038904,30]
[313714487,1707601860951,-500.0,0.00038904,30]
[313714488,1707601860961,-586.91,0.00038904,30]
[313714489,1707601860970,-1186.41,0.00038904,30]
[313714490,1707601860979,-152.20144922,0.0003892,7]
[313714491,1707601860989,-485.85816688,0.0003898,2]
[313714492,1707601860998,-309.83980399,0.00039,5]
[313714493,1707601861007,-2329.28566913,0.00039,2]
[313714494,1707601861016,-862.90015685,0.00039,4]
[313714495,1707601861026,-4368.65640702,0.00039,40]
[313714496,1707601861035,-300.00829871,0.00039,2]
[313714497,1707601861044,-7704.0,0.00039,5]
[313714498,1707601861054,-150.51389881,0.00039068,7]
[313714499,1707601861063,-371.82755853,0.0003909,7]
[313714500,1707601861072,-522.13,0.00039137,7]
[313714501,1707601861081,-522.13,0.00039137,7]
[313714502,1707601861090,-155.01257736,0.00039139,7]
[313714503,1707601861100,-150.0,0.0003915,7]
[313714504,1707601861109,-150.0,0.0003915,7]
[313714505,1707601861119,-150.0,0.0003915,7]
[313714506,1707601861128,-150.0,0.0003915,7]
[313714507,1707601861137,-186.72026613,0.0003915,7]
[313714508,1707601861146,-150.0,0.0003915,7]
[313714509,1707601861157,-371.82755853,0.00039152,7]
[313714510,1707601861166,-500.0,0.00039178,30]
[313714511,1707601861176,-500.0,0.00039178,30]
[313714512,1707601861185,-500.0,0.00039178,30]
[313714513,1707601861195,-500.0,0.00039178,30]
[313714514,1707601861204,-500.0,0.00039178,30]
[313714515,1707601861213,-500.0,0.00039178,30]
[313714516,1707601861242,-500.0,0.00039178,30]
[313714517,1707601861252,-500.0,0.00039178,30]
[313714518,1707601861262,-500.0,0.00039178,30]
[313714519,1707601861271,-500.0,0.00039178,30]
[313714520,1707601861281,-500.0,0.00039178,30]
[313714521,1707601861290,-527.66,0.00039178,30]
[313714522,1707601861300,-500.0,0.00039178,30]
[313714523,1707601861310,-500.0,0.00039178,30]
[313714524,1707601861320,-500.0,0.00039178,30]
[313714525,1707601861330,-500.0,0.00039178,30]
[313714526,1707601861339,-500.0,0.00039178,30]
[313714527,1707601861349,-500.0,0.00039178,30]
[313714528,1707601861358,-500.0,0.00039178,30]
[313714529,1707601861370,-500.0,0.00039178,30]
[313714530,1707601861379,-500.0,0.00039178,30]
[313714531,1707601861388,-500.0,0.00039178,7]
[313714532,1707601861398,-500.0,0.00039178,30]
[313714533,1707601861407,-500.0,0.00039178,30]
[313714534,1707601861417,-500.0,0.00039178,30]
[313714535,1707601861426,-500.0,0.00039178,30]
[313714536,1707601861436,-500.0,0.00039178,30]
[313714537,1707601861445,-500.0,0.00039178,30]
[313714538,1707601861455,-500.0,0.00039178,30]
[313714539,1707601861464,-626.88,0.00039178,30]
[313714540,1707601861474,-500.0,0.00039178,30]
[313714541,1707601861483,-500.0,0.00039178,30]
[313714542,1707601861493,-500.0,0.00039178,30]
[313714543,1707601861503,-500.0,0.00039178,30]
[313714544,1707601861512,-829.35,0.00039178,30]
[313714545,1707601861522,-500.0,0.00039178,30]